bitfinex/quotes_SOLUSD_20251031
["timestamp","ask_amount","ask_price","bid_price","bid_amount"]
[1761900585315,0.1,186.4,186.39,15.99721484]
[1761900585517,0.1,186.4,186.39,25.78604253]
[1761900585698,0.1,186.4,186.39,26.32255199]
[1761900586015,0.1,186.4,186.39,25.78604253]
[1761900586902,0.1,186.4,186.39,2.65442403]
[1761900587221,0.1,186.4,186.39,1.99442403]
[1761900587713,0.79,186.4,186.38,1.99442403]
[1761900589117,0.79,186.4,186.36,1.99442403]
[1761900589906,0.79,186.4,186.37,1.99442403]
[1761900590109,0.1,186.4,186.38,1.99442403]
[1761900590313,0.1,186.4,186.39,2.65442403]
[1761900590818,0.79,186.4,186.39,1.99442403]
[1761900590993,0.1,186.4,186.39,1.99442403]
[1761900591320,0.79,186.4,186.37,1.99442403]
[1761900591504,0.79,186.4,186.38,1.99442403]
[1761900592390,0.79,186.4,186.36,0.66]
[1761900592592,0.79,186.4,186.38,1.99442403]
[1761900592816,0.79,186.4,186.35,67.06597299]
[1761900593131,0.79,186.4,186.37,1.99442403]
[1761900593605,0.1,186.4,186.37,1.99442403]
[1761900593806,0.1,186.4,186.39,1.99442403]
[1761900593986,0.1,186.4,186.39,63.69442403]
[1761900594790,0.1,186.4,186.39,64.35442403]
[1761900594995,0.1,186.4,186.39,69.05951872]
[1761900595227,0.1,186.4,186.39,61.7]
[1761900595517,0.1,186.4,186.39,63.69442403]
[1761900596413,0.1,186.4,186.39,61.7]
[1761900596414,0.79,186.4,186.39,61.7]
[1761900596913,0.1,186.4,186.39,63.69442403]
[1761900597110,0.79,186.4,186.39,61.7]
[1761900598712,0.79,186.4,186.37,5.36563751]
[1761900599015,0.79,186.4,186.38,1.99442403]
[1761900599213,0.79,186.4,186.37,1.99442403]
[1761900599406,0.79,186.4,186.38,1.99442403]
[1761900599724,0.79,186.4,186.37,1.99442403]
[1761900600033,0.79,186.4,186.36,61.7]
[1761900600034,4.0056129,186.39,186.36,61.7]
[1761900600401,0.7,186.38,186.36,63.69442403]
[1761900600640,0.7,186.38,186.35,1.99442403]
[1761900602222,4.01000582,186.37,186.35,1.99442403]
[1761900602426,0.7,186.38,186.35,1.99442403]
[1761900602750,0.7,186.38,186.29,0.68]
[1761900602751,1.99442403,186.36,186.29,0.68]
[1761900603042,0.7,186.35,186.29,2.67442403]
[1761900603222,0.7,186.35,186.3,1.99442403]
[1761900603545,8.06075147,186.35,186.29,1.99442403]
[1761900603715,8.06075147,186.35,186.29,7.36237023]
[1761900603915,0.1,186.4,186.34,1.99442403]
[1761900604132,0.1,186.4,186.36,1.99442403]
[1761900604133,4.71435667,186.39,186.36,1.99442403]
[1761900604322,4.01435667,186.38,186.36,1.99442403]
[1761900604523,4.01435667,186.37,186.35,1.99442403]
[1761900604717,0.7,186.38,186.35,1.99442403]
[1761900604916,4.71439691,186.37,186.32,0.68]
[1761900605217,0.7,186.37,186.35,1.99442403]
[1761900605446,4.71423516,186.39,186.35,1.99442403]
[1761900605654,0.7,186.39,186.36,1.99442403]
[1761900605949,0.7,186.38,186.36,1.99442403]
[1761900607433,0.1,186.4,186.36,1.99442403]
[1761900607434,0.1,186.4,186.37,5.07513684]
[1761900607636,4.01520003,186.39,186.38,5.07513684]
[1761900608212,4.71520003,186.39,186.36,61.7]
[1761900608427,4.71520003,186.38,186.36,61.7]
[1761900608626,0.7,186.38,186.36,61.7]
[1761900609043,0.7,186.38,186.36,66.77513684]
[1761900609738,0.8,186.4,186.36,66.77513684]
[1761900610040,4.01635977,186.39,186.38,5.07513684]
[1761900610239,0.1,186.4,186.38,5.07513684]
[1761900611125,0.1,186.4,186.38,0.68]
[1761900611327,0.1,186.4,186.38,62.38]
[1761900611636,0.1,186.4,186.39,5.36509469]
[1761900611828,0.1,186.4,186.39,6.04509469]
[1761900612646,0.1,186.4,186.39,5.36509469]
[1761900612945,0.1,186.4,186.39,6.04509469]
[1761900613446,0.1,186.4,186.38,61.7]
[1761900613626,0.8,186.4,186.39,5.07513684]
[1761900613826,0.1,186.4,186.39,5.07513684]
[1761900614448,4.11933931,186.4,186.39,5.75513684]
[1761900615242,4.11933931,186.4,186.39,5.07513684]
[1761900615727,4.81933931,186.4,186.38,66.77513684]
[1761900615928,0.8,186.4,186.39,5.07513684]
[1761900616134,4.81973805,186.4,186.38,61.7]
[1761900616336,0.1,186.4,186.39,5.07513684]
[1761900616523,4.11974989,186.4,186.39,5.07513684]
[1761900616834,4.80974989,186.4,186.39,5.07513684]
[1761900617233,4.80974989,186.4,186.38,61.7]
[1761900617552,0.79,186.4,186.39,5.07513684]
[1761900617845,4.81007436,186.4,186.39,5.07513684]
[1761900618228,4.12007436,186.4,186.39,5.07513684]
[1761900619023,4.12007436,186.4,186.36,6.04593415]
[1761900619024,4.81007436,186.4,186.36,5.07513684]
[1761900619227,4.71007436,186.39,186.36,5.07513684]
[1761900619428,4.02007436,186.38,186.33,61.7]
[1761900619746,0.69,186.38,186.36,5.07513684]
[1761900620725,0.69,186.38,186.34,0.68]
[1761900620925,4.02092569,186.37,186.33,61.7]
[1761900621126,4.02119874,186.36,186.33,66.77513684]
[1761900621325,4.02119874,186.35,186.31,66.77513684]
[1761900621527,5.76513684,186.37,186.31,66.77513684]
[1761900621528,5.36611595,186.36,186.31,66.77513684]
[1761900621752,4.02085689,186.35,186.31,61.7]
[1761900621954,0.69,186.35,186.31,66.77513684]
[1761900622134,0.69,186.34,186.31,66.77513684]
[1761900622336,5.36611595,186.36,186.31,66.77513684]
[1761900622542,4.71020621,186.35,186.32,5.07513684]
[1761900622746,0.69,186.35,186.32,5.07513684]
[1761900623454,0.69,186.35,186.32,7.66223739]
[1761900624160,0.69,186.35,186.33,7.66223739]
[1761900625265,0.69,186.38,186.34,7.66223739]
[1761900625465,4.01849806,186.37,186.36,7.66223739]
[1761900627443,4.01849806,186.37,186.36,3.114724]
[1761900627856,0.69,186.39,186.36,3.114724]
[1761900628179,4.01794646,186.38,186.36,3.114724]
[1761900628463,0.69,186.39,186.36,3.114724]
[1761900628659,4.0178885,186.38,186.35,3.114724]
[1761900628864,4.01794859,186.37,186.31,0.72]
[1761900629044,4.01794859,186.37,186.33,3.114724]
[1761900629045,4.01794859,186.36,186.33,3.114724]
[1761900629364,4.71810977,186.35,186.33,3.114724]
[1761900629550,4.71810977,186.35,186.3,64.814724]
[1761900629551,4.01804459,186.34,186.3,64.814724]
[1761900629866,0.7,186.34,186.3,65.534724]
[1761900630255,0.7,186.37,186.33,3.114724]
[1761900630447,4.01773513,186.36,186.33,3.114724]
[1761900630649,4.01773513,186.35,186.32,3.114724]
[1761900630847,4.01773318,186.34,186.32,3.114724]
[1761900631151,8.48044898,186.37,186.32,3.114724]
[1761900631349,5.3668223,186.33,186.31,61.7]
[1761900631762,6.06658389,186.34,186.31,61.7]
[1761900631944,4.01839813,186.33,186.31,61.7]
[1761900632144,5.36658389,186.34,186.31,61.7]
[1761900632373,4.71763279,186.33,186.31,61.7]
[1761900632554,0.7,186.33,186.31,61.7]
[1761900633957,6.06700027,186.33,186.31,61.7]
[1761900634646,0.7,186.33,186.31,61.7]
[1761900634859,5.36658958,186.34,186.31,64.814724]
[1761900635145,5.36658958,186.34,186.31,65.534724]
[1761900635346,20.692,186.4,186.33,3.114724]
[1761900635347,0.7,186.37,186.33,3.114724]
[1761900635546,4.01580961,186.36,186.33,3.114724]
[1761900635778,4.01580961,186.35,186.33,3.114724]
[1761900635947,4.01580961,186.34,186.33,3.114724]
[1761900636674,4.01541499,186.34,186.33,3.114724]
[1761900637782,4.01541499,186.34,186.32,3.834724]
[1761900637963,0.7,186.36,186.32,3.834724]
[1761900638184,4.01511071,186.35,186.33,3.834724]
[1761900638478,26.65744276,186.38,186.34,0.72]
[1761900638687,4.71455263,186.37,186.34,0.72]
[1761900638978,3.114724,186.35,186.31,61.7]
[1761900639146,7.12952317,186.34,186.31,61.7]
[1761900639347,4.01487665,186.33,186.31,61.7]
[1761900639557,4.01487665,186.33,186.29,64.814724]
[1761900639558,0.7,186.33,186.29,64.814724]
[1761900639869,6.0672531,186.32,186.29,64.814724]
[1761900643190,16.5307821,186.35,186.29,65.534724]
[1761900643481,4.71443753,186.34,186.3,3.114724]
[1761900643776,4.01443753,186.33,186.3,3.114724]
[1761900643965,0.7,186.34,186.3,3.114724]
[1761900644164,4.01443626,186.33,186.3,3.834724]
[1761900644354,6.06657347,186.34,186.3,3.834724]
[1761900644554,4.01436178,186.33,186.3,3.834724]
[1761900644753,0.7,186.34,186.3,0.72]
[1761900644954,4.71436135,186.33,186.29,64.814724]
[1761900645155,0.7,186.33,186.29,64.814724]
[1761900645449,0.7,186.33,186.3,0.72]
[1761900645649,0.7,186.33,186.29,64.814724]
[1761900645879,5.36711034,186.32,186.29,65.534724]
[1761900647578,6.06687797,186.33,186.29,65.534724]
[1761900647776,5.36687797,186.33,186.3,3.834724]
[1761900648574,0.7,186.34,186.3,3.834724]
[1761900648774,5.36653083,186.35,186.31,3.834724]
[1761900648975,4.01343128,186.34,186.31,3.834724]
[1761900649162,6.06653083,186.35,186.31,3.834724]
[1761900649361,4.01321689,186.34,186.31,3.834724]
[1761900649677,6.06653083,186.35,186.31,3.834724]
[1761900649879,9.37980813,186.34,186.31,3.834724]
[1761900650065,6.06656187,186.34,186.31,3.114724]
[1761900650875,0.7,186.34,186.31,3.834724]
[1761900651070,0.7,186.34,186.32,3.114724]
[1761900651468,6.06595836,186.36,186.32,3.114724]
[1761900651673,4.0129695,186.35,186.32,3.114724]
[1761900651864,4.0129695,186.34,186.33,3.834724]
[1761900652260,0.7,186.39,186.33,9.20151572]
[1761900652464,4.01278105,186.38,186.36,3.114724]
[1761900652767,4.01278105,186.37,186.36,3.114724]
[1761900653361,6.06514736,186.39,186.36,3.114724]
[1761900653564,7.12710043,186.38,186.33,64.814724]
[1761900653767,4.01237643,186.37,186.33,61.7]
[1761900653966,0.7,186.37,186.33,61.7]
[1761900654172,0.7,186.36,186.33,61.7]
[1761900654375,0.7,186.36,186.33,64.814724]
[1761900655282,0.7,186.36,186.33,61.7]
[1761900655580,6.06603953,186.36,186.33,61.7]
[1761900656086,0.7,186.35,186.33,61.7]
[1761900656257,0.7,186.35,186.31,61.7]
[1761900656456,4.01398426,186.34,186.31,61.7]
[1761900656674,3.814724,186.35,186.31,61.7]
[1761900656878,7.82878885,186.34,186.31,61.7]
[1761900657190,4.0146854,186.33,186.31,61.7]
[1761900657367,6.06691646,186.33,186.29,3.834724]
[1761900657569,6.06691646,186.33,186.28,3.114724]
[1761900657570,0.7,186.32,186.28,3.114724]
[1761900657968,0.7,186.32,186.28,3.834724]
[1761900659086,6.06711675,186.32,186.28,3.834724]
[1761900659872,3.114724,186.35,186.29,3.114724]
[1761900660071,4.01623292,186.34,186.31,3.114724]
[1761900660378,4.01623292,186.33,186.32,3.114724]
[1761900660573,6.07567044,186.37,186.32,8.48183434]
[1761900660773,4.01687375,186.36,186.33,3.114724]
[1761900660967,4.01687375,186.35,186.33,3.114724]
[1761900661174,4.01693053,186.34,186.33,3.114724]
[1761900661885,4.01693053,186.34,186.32,3.824724]
[1761900662094,5.36567044,186.37,186.33,3.824724]
[1761900662298,4.01803944,186.36,186.33,3.114724]
[1761900662500,4.01803944,186.35,186.33,3.114724]
[1761900662792,0.71,186.36,186.33,3.114724]
[1761900662964,4.01895845,186.35,186.33,3.114724]
[1761900663163,4.02018486,186.34,186.31,0.71]
[1761900663371,4.02018613,186.33,186.32,3.114724]
[1761900663668,6.07596514,186.36,186.32,3.824724]
[1761900663874,4.020321,186.35,186.32,3.824724]
[1761900664071,4.020321,186.34,186.32,3.824724]
[1761900664276,6.07596514,186.36,186.32,3.824724]
[1761900664477,4.02134365,186.35,186.32,3.824724]
[1761900664696,4.02134365,186.34,186.32,3.824724]
[1761900664995,6.07541619,186.38,186.33,3.824724]
[1761900665294,4.0214631,186.37,186.33,3.824724]
[1761900665492,4.0214631,186.36,186.35,3.114724]
[1761900666196,4.0214631,186.36,186.35,3.824724]
[1761900667501,10.09765462,186.36,186.34,61.7]
[1761900667682,4.0214631,186.35,186.34,61.7]
[1761900668270,4.0214631,186.35,186.34,64.814724]
[1761900668494,0.1,186.4,186.34,84.30759402]
[1761900668682,4.02084197,186.39,186.38,3.114724]
[1761900668879,4.02084197,186.39,186.37,3.114724]
[1761900669081,0.1,186.4,186.37,3.114724]
[1761900669280,4.01989938,186.39,186.37,3.824724]
[1761900669578,0.1,186.4,186.37,3.824724]
[1761900669779,4.01982659,186.39,186.37,3.824724]
[1761900669987,0.1,186.4,186.37,3.824724]
[1761900670182,4.01982617,186.39,186.38,3.114724]
[1761900670482,4.01982617,186.39,186.38,3.824724]
[1761900672302,4.01982617,186.39,186.38,3.114724]
[1761900672607,4.01982617,186.39,186.38,3.824724]
[1761900673092,0.1,186.4,186.38,3.824724]
[1761900673277,0.1,186.4,186.39,3.114724]
[1761900673597,4.1170951,186.4,186.39,3.114724]
[1761900674115,4.1170951,186.4,186.39,3.824724]
[1761900674282,0.1,186.4,186.39,3.824724]
[1761900675501,0.1,186.4,186.39,9.18981869]
[1761900676899,0.1,186.4,186.39,3.114724]
[1761900677183,4.80375508,186.4,186.37,3.114724]
[1761900677407,0.79,186.4,186.37,3.114724]
[1761900677906,0.1,186.4,186.38,3.114724]
[1761900678298,0.1,186.4,186.39,3.114724]
[1761900678681,0.1,186.4,186.37,67.06562956]
[1761900678918,0.79,186.4,186.38,3.114724]
[1761900679982,0.79,186.4,186.37,61.7]
[1761900680187,0.79,186.4,186.37,64.814724]
[1761900681413,4.01147302,186.39,186.37,61.7]
[1761900681590,0.79,186.4,186.37,61.7]
[1761900681791,4.70174508,186.39,186.37,61.7]
[1761900681993,0.69,186.39,186.37,61.7]
[1761900683611,6.05517505,186.39,186.37,61.7]
[1761900683796,6.05517505,186.39,186.35,2.69340625]
[1761900685308,0.69,186.38,186.35,2.69340625]
[1761900685494,6.05541394,186.38,186.31,67.76731106]
[1761900685702,0.69,186.37,186.32,1.99340625]
[1761900686210,2.68340625,186.37,186.32,2.69340625]
[1761900686423,0.69,186.36,186.32,2.69340625]
[1761900687102,2.68340625,186.36,186.3,6.06767674]
[1761900687305,4.0133385,186.35,186.3,8.06108299]
[1761900687501,5.36626356,186.35,186.31,1.99340625]
[1761900687812,6.05626356,186.35,186.31,2.69340625]
[1761900688194,0.69,186.35,186.32,1.99340625]
[1761900689599,0.69,186.35,186.31,1.99340625]
[1761900689600,6.05634072,186.35,186.31,1.99340625]
[1761900689790,6.05634072,186.35,186.31,2.70340625]
[1761900690513,0.69,186.35,186.32,1.99340625]
[1761900691200,6.05632793,186.35,186.32,1.99340625]
[1761900691401,5.3668223,186.33,186.3,61.7]
[1761900691716,5.3668223,186.33,186.28,64.40340625]
[1761900691892,13.41490666,186.36,186.29,2.70340625]
[1761900692093,6.72791007,186.35,186.29,2.70340625]
[1761900692300,4.01450382,186.34,186.3,2.70340625]
[1761900692509,4.01450382,186.33,186.3,2.70340625]
[1761900692708,0.72,186.34,186.3,2.70340625]
[1761900692894,4.01449423,186.33,186.3,2.70340625]
[1761900693095,0.72,186.34,186.3,0.71]
[1761900693295,4.01422162,186.33,186.3,0.71]
[1761900693512,6.08668607,186.34,186.3,0.71]
[1761900693714,4.01431099,186.33,186.29,1.99340625]
[1761900693893,0.72,186.33,186.29,2.70340625]
[1761900694608,5.36668607,186.34,186.29,7.36134541]
[1761900694917,4.01417685,186.33,186.3,2.70340625]
[1761900695116,0.72,186.34,186.3,2.70340625]
[1761900695425,4.01404143,186.33,186.3,2.70340625]
[1761900695597,6.08669322,186.34,186.3,2.70340625]
[1761900695921,4.01404177,186.33,186.3,0.71]
[1761900696220,0.72,186.33,186.3,0.71]
[1761900697921,0.72,186.33,186.3,2.70340625]
[1761900698523,5.36595836,186.36,186.3,7.36107872]
[1761900698718,4.01333102,186.35,186.31,2.70340625]
[1761900699027,4.01333102,186.34,186.31,2.70340625]
[1761900699231,0.72,186.35,186.31,2.70340625]
[1761900699529,4.01305409,186.34,186.31,0.71]
[1761900699827,0.72,186.35,186.31,2.70340625]
[1761900700124,4.73305376,186.34,186.31,1.99340625]
[1761900700431,0.72,186.34,186.3,6.07764926]
[1761900700724,6.08656071,186.34,186.31,1.99340625]
[1761900701096,6.08656071,186.34,186.3,2.70340625]
[1761900703019,0.72,186.33,186.3,2.70340625]
[1761900703332,0.72,186.33,186.3,1.99340625]
[1761900704429,6.08683515,186.33,186.3,2.70340625]
[1761900704629,6.08683515,186.33,186.3,1.99340625]
[1761900706325,6.08683515,186.33,186.29,0.71]
[1761900706530,6.08683515,186.33,186.3,1.99340625]
[1761900706715,0.72,186.32,186.29,2.70340625]
[1761900706913,0.72,186.32,186.29,1.99340625]
[1761900707325,0.72,186.32,186.29,2.70340625]
[1761900708334,0.72,186.32,186.29,8.07135697]
[1761900708538,6.08658741,186.34,186.3,0.71]
[1761900708914,0.72,186.33,186.28,0.71]
[1761900709237,0.72,186.33,186.29,1.99340625]
[1761900709737,0.72,186.33,186.29,2.70340625]
[1761900710236,10.09843953,186.33,186.29,2.70340625]
[1761900710536,6.08686304,186.33,186.29,2.70340625]
[1761900712140,0.72,186.33,186.29,2.70340625]
[1761900712435,4.73110849,186.33,186.3,1.99340625]
[1761900712818,0.72,186.33,186.3,1.99340625]
[1761900713135,4.73084065,186.33,186.3,1.99340625]
[1761900713838,4.01084065,186.33,186.31,0.71]
[1761900714144,0.72,186.35,186.32,1.99340625]
[1761900714331,4.01081986,186.34,186.32,1.99340625]
[1761900714640,0.72,186.35,186.32,1.99340625]
[1761900714840,4.01081817,186.34,186.32,1.99340625]
[1761900715140,0.72,186.35,186.32,2.70340625]
[1761900715342,4.01098406,186.34,186.32,2.70340625]
[1761900715517,0.72,186.35,186.32,1.99340625]
[1761900715719,4.01098406,186.34,186.32,2.70340625]
[1761900715925,0.72,186.35,186.32,2.70340625]
[1761900716134,4.01098372,186.34,186.32,2.70340625]
[1761900716420,0.72,186.35,186.32,2.70340625]
[1761900716626,4.01119971,186.34,186.32,0.71]
[1761900716828,0.72,186.35,186.32,2.70340625]
[1761900717028,4.01119971,186.34,186.32,2.70340625]
[1761900717230,0.72,186.35,186.32,2.70340625]
[1761900717431,4.0114641,186.34,186.32,2.70340625]
[1761900717724,0.72,186.35,186.32,2.70340625]
[1761900718030,4.01132825,186.34,186.32,2.70340625]
[1761900718338,0.72,186.35,186.32,2.70340625]
[1761900718517,4.0118162,186.34,186.32,2.70340625]
[1761900718721,0.72,186.35,186.32,2.70340625]
[1761900718961,4.0118162,186.34,186.32,2.70340625]
[1761900719119,0.72,186.35,186.32,2.70340625]
[1761900719324,4.01236713,186.34,186.32,2.70340625]
[1761900719622,0.72,186.35,186.32,2.70340625]
[1761900720136,6.01568738,186.37,186.33,1.99340625]
[1761900720342,4.0130481,186.36,186.34,0.71]
[1761900720635,6.11490435,186.4,186.35,1.99340625]
[1761900720835,6.11490435,186.4,186.34,0.71]
[1761900720836,4.01251835,186.39,186.37,1.99340625]
[1761900721041,4.01251835,186.38,186.37,1.99340625]
[1761900721349,4.01251835,186.38,186.36,2.70340625]
[1761900721526,4.01251835,186.37,186.36,2.70340625]
[1761900721845,4.01251835,186.37,186.35,5.36608803]
[1761900722029,5.46481117,186.4,186.36,1.99340625]
[1761900722227,4.01447485,186.39,186.36,1.99340625]
[1761900722431,4.01447485,186.38,186.37,0.71]
[1761900722628,4.01453871,186.38,186.35,5.36608803]
[1761900722845,4.01453871,186.37,186.36,0.71]
[1761900723042,0.75,186.4,186.36,0.71]
[1761900723228,4.01521121,186.39,186.36,0.71]
[1761900723433,4.01521121,186.38,186.36,0.71]
[1761900723635,0.75,186.4,186.37,1.99340625]
[1761900723834,4.01510945,186.39,186.37,1.99340625]
[1761900724043,4.01510945,186.38,186.36,8.0692946]
[1761900724354,4.01510945,186.37,186.36,8.0692946]
[1761900725132,4.01510945,186.37,186.36,1.99340625]
[1761900726740,4.01510945,186.37,186.35,0.71]
[1761900726943,6.66124827,186.36,186.3,1.99340625]
[1761900727152,4.01784202,186.35,186.3,2.70340625]
[1761900727350,4.01784202,186.35,186.29,0.71]
[1761900727351,4.01784202,186.34,186.29,0.71]
[1761900727549,4.01784202,186.33,186.3,7.36104374]
[1761900727741,0.65,186.35,186.31,1.99340625]
[1761900727936,4.01919549,186.34,186.31,0.71]
[1761900728154,0.1,186.4,186.34,20.592]
[1761900728458,4.0187607,186.39,186.34,82.292]
[1761900728760,4.0187607,186.38,186.35,0.71]
[1761900729058,0.1,186.4,186.35,0.71]
[1761900729059,4.018194,186.37,186.35,2.70340625]
[1761900729244,4.01896296,186.36,186.35,1.99340625]
[1761900730259,0.65,186.39,186.35,8.06965256]
[1761900730460,4.01911908,186.38,186.35,6.07624631]
[1761900730758,4.01911908,186.37,186.35,6.07624631]
[1761900730960,0.65,186.39,186.35,6.07624631]
[1761900731156,4.01898257,186.38,186.34,1.99340625]
[1761900731351,4.01898257,186.38,186.32,1.99340625]
[1761900731352,6.01238882,186.37,186.32,1.99340625]
[1761900731553,6.01238882,186.36,186.31,0.71]
[1761900731748,4.66898257,186.35,186.29,0.71]
[1761900732052,4.01898257,186.34,186.29,2.70340625]
[1761900732233,4.01898257,186.33,186.3,1.99340625]
[1761900732436,0.65,186.35,186.3,1.99340625]
[1761900732651,4.02017785,186.34,186.31,1.99340625]
[1761900732943,0.65,186.37,186.32,1.99340625]
[1761900733152,4.01996134,186.36,186.32,2.70340625]
[1761900733452,4.01996134,186.35,186.34,1.99340625]
[1761900734239,4.01996134,186.35,186.34,2.70340625]
[1761900735453,20.592,186.39,186.34,8.06994054]
[1761900735659,4.66955686,186.38,186.32,6.07687446]
[1761900735955,4.01955686,186.37,186.35,1.99340625]
[1761900736162,4.01955686,186.36,186.35,1.99340625]
[1761900736539,0.65,186.38,186.35,1.99340625]
[1761900736741,4.01916205,186.37,186.35,1.99340625]
[1761900736940,0.65,186.38,186.35,1.99340625]
[1761900737241,4.01916247,186.37,186.35,2.70340625]
[1761900737560,0.81,186.4,186.36,2.70340625]
[1761900737769,4.01887479,186.39,186.36,2.70340625]
[1761900738057,4.01887479,186.38,186.36,2.70340625]
[1761900738243,4.01887479,186.37,186.36,1.99340625]
[1761900739232,0.1,186.4,186.36,8.06936461]
[1761900739464,4.0179984,186.39,186.38,1.99340625]
[1761900739835,4.0179984,186.39,186.38,2.70340625]
[1761900741663,4.0179984,186.39,186.38,8.0687888]
[1761900742049,4.0179984,186.39,186.38,1.99340625]
[1761900742748,4.0179984,186.39,186.37,7.35897682]
[1761900742946,0.1,186.4,186.37,7.35897682]
[1761900743137,4.01603175,186.39,186.38,1.99340625]
[1761900743333,0.1,186.4,186.38,2.70340625]
[1761900743637,0.1,186.4,186.39,2.70340625]
[1761900743846,4.11544584,186.4,186.39,2.70340625]
[1761900744362,0.1,186.4,186.39,31.26903125]
[1761900745050,0.1,186.4,186.39,36.63412594]
[1761900745562,0.1,186.4,186.39,29.77934801]
[1761900745962,0.1,186.4,186.39,104.38042902]
[1761900747054,0.1,186.4,186.39,91.47934801]
[1761900747362,0.1,186.4,186.39,87.65709469]
[1761900747660,0.1,186.4,186.39,91.47934801]
[1761900748164,0.1,186.4,186.39,70.88734801]
[1761900748749,0.1,186.4,186.39,8.47734801]
[1761900749350,0.1,186.4,186.39,9.16734801]
[1761900749662,0.1,186.4,186.39,32.87160133]
[1761900750267,0.76,186.52,186.43,3.11225332]
[1761900750472,0.66,186.51,186.49,3.11225332]
[1761900750772,0.66,186.51,186.48,5.36226222]
[1761900750969,0.66,186.51,186.5,3.11225332]
[1761900751161,0.66,186.51,186.49,3.11225332]
[1761900751770,0.1,186.52,186.47,18.76964149]
[1761900751944,0.1,186.52,186.49,0.69]
[1761900752147,0.1,186.52,186.47,5.36265914]
[1761900752346,0.66,186.51,186.48,3.11225332]
[1761900753369,0.66,186.51,186.46,3.11225332]
[1761900753677,0.66,186.51,186.47,3.11225332]
[1761900753850,0.66,186.51,186.48,3.11225332]
[1761900754745,6.02183004,186.51,186.46,3.11225332]
[1761900754954,0.66,186.5,186.46,3.11225332]
[1761900755365,3.77225332,186.5,186.44,3.11225332]
[1761900755783,0.66,186.49,186.44,3.11225332]
[1761900755972,20.592,186.5,186.48,3.11225332]
[1761900756274,0.66,186.51,186.49,3.11225332]
[1761900756475,0.66,186.51,186.48,3.11225332]
[1761900757963,0.66,186.51,186.49,3.11225332]
[1761900758152,20.592,186.5,186.42,5.4615824]
[1761900758352,3.11225332,186.46,186.38,6.05519861]
[1761900758569,20.592,186.48,186.41,3.11225332]
[1761900758758,3.11225332,186.46,186.41,3.11225332]
[1761900758956,0.66,186.45,186.41,3.11225332]
[1761900759163,0.66,186.45,186.4,3.11225332]
[1761900759476,0.66,186.45,186.41,3.11225332]
[1761900759853,0.66,186.45,186.4,3.11225332]
[1761900760052,0.66,186.45,186.38,0.69]
[1761900760053,0.66,186.45,186.41,3.11225332]
[1761900760271,0.66,186.45,186.4,3.11225332]
[1761900760469,20.592,186.48,186.44,3.11225332]
[1761900760683,26.61453297,186.48,186.46,3.11225332]
[1761900761386,26.61453297,186.48,186.45,3.11225332]
[1761900762174,26.61463352,186.48,186.45,3.11225332]
[1761900764474,25.95463352,186.48,186.45,3.11225332]
[1761900764671,6.02215642,186.5,186.46,3.11225332]
[1761900764874,6.02215642,186.5,186.44,5.36362855]
[1761900764875,6.02215642,186.5,186.43,0.69]
[1761900765184,6.02215642,186.5,186.45,3.11225332]
[1761900765568,0.66,186.49,186.45,3.80225332]
[1761900765974,5.36250536,186.48,186.45,3.11225332]
[1761900767183,6.02250536,186.48,186.43,0.69]
[1761900767366,6.02250536,186.48,186.44,3.11225332]
[1761900767989,6.02250536,186.48,186.43,0.69]
[1761900768187,6.02250536,186.48,186.44,3.11225332]
[1761900768386,18.76876876,186.48,186.42,67.06250536]
[1761900768690,3.11225332,186.46,186.42,61.7]
[1761900768898,3.11225332,186.45,186.42,61.7]
[1761900769288,0.66,186.44,186.42,61.7]
[1761900769474,0.66,186.44,186.39,3.11225332]
[1761900769665,0.66,186.44,186.39,3.80225332]
[1761900770162,5.36394357,186.43,186.39,3.80225332]
[1761900770670,6.02394357,186.43,186.39,0.69]
[1761900770869,6.02394357,186.43,186.39,3.80225332]
[1761900771064,5.36394357,186.43,186.4,3.11225332]